Cogmind - Beta 9.1 @@@ ROGUE MODE // 2019.11.05 @ 13:03:46 Player: VikingSchism Result: Destroyed by Y-45 Defender with Heavy Assault Rifle Performance ------------- Evolutions (1) 500 Regions Visited (3) 600 Robots Destroyed (30) 150 Value Destroyed (781) 781 Prototype IDs (1) 20 Alien Tech Used (0) 0 Bonus (0) 0 TOTAL SCORE: 2051 Bonus ------- None Cogmind --------- Core Integrity 0/400 Matter 211/300 Energy 99/100 System Corruption 0% Temperature Cool (9) Location -9/Storage Parts ------- Power (1) Propulsion (3) Utility (3) Large Storage Unit Weapon (2) Inventory (10) Aluminum Leg Large Storage Unit Medium Matter Pod (37) Improved Sensor Array Signal Interpreter Improved Signal Interpreter Beam Rifle Light Assault Rifle Light Assault Rifle Assault Cannon Peak State ------------ Power Light Nuclear Core Propulsion Aluminum Leg Aluminum Leg Aluminum Leg Utility Small Storage Unit Large Storage Unit Hardened Light Armor Plating Weapon Heavy Assault Rifle Heavy Assault Rifle Inventory Light Nuclear Core Large Storage Unit Medium Matter Pod Improved Sensor Array Signal Interpreter Signal Interpreter Improved Signal Interpreter Light Cannon Assault Cannon Grenade Launcher [Rating: 15] Favorites ----------- Power Light Ion Engine Engine Light Ion Engine Power Core Light Nuclear Core Propulsion Aluminum Leg Treads Light Treads Leg Aluminum Leg Flight Unit Improved Flight Unit Utility Large Storage Unit Storage Large Storage Unit Protection Hardened Light Armor Plating Weapon Light Assault Rifle Energy Gun Small Laser Ballistic Gun Light Assault Rifle Ballistic Cannon Light Cannon Launcher Grenade Launcher Build | -11 -10 -9 -9 ------- Run | Scr Mat Mat Sto Slots Evolved 2 | . . 2 . Power . | . . . . Propulsion 1 | . . 1 . Utility 1 | . . 1 . Weapon . | . . . . Parts Attached 40 | 6 8 12 14 Power 4 | 1 . 1 2 Engine 2 | 1 . 1 . Core 2 | . . . 2 Reactor . | . . . . Propulsion 11 | 2 2 3 4 Treads 2 | . . . 2 Leg 8 | 2 2 3 1 Wheel . | . . . . Hover . | . . . . Flight 1 | . . . 1 Utility 6 | 1 2 3 . Device . | . . . . Storage 3 | 1 2 . . Processor . | . . . . Hackware . | . . . . Protection 3 | . . 3 . Artifact . | . . . . Weapon 19 | 2 4 5 8 Energy Gun 5 | . 1 . 4 Energy Cannon . | . . . . Ballistic Gun 9 | 2 2 4 1 Ballistic Cannon 2 | . . 1 1 Launcher 3 | . 1 . 2 Special Weapon . | . . . . Impact Weapon . | . . . . Slashing Weapon . | . . . . Piercing Weapon . | . . . . Special Melee Weapon . | . . . . Unidentified Prototypes 1 | . . . 1 Parts Lost 20 | . 2 4 14 Power 2 | . . . 2 Propulsion 7 | . . 2 5 Utility 2 | . . . 2 Weapon 9 | . 2 2 5 Highest Loss Streak 4 | . 2 4 4 Average Slot Usage (%) 86 | . 94 90 78 Engine 8 | . 14 10 2 Core 2 | . . . 5 Treads 1 | . . . 4 Leg 22 | . 28 26 15 Flight 1 | . . . 2 Storage 22 | . 22 22 21 Protection 5 | . . 10 7 Energy Gun 3 | . 1 4 3 Ballistic Gun 15 | . 24 15 10 Ballistic Cannon 1 | . . . 3 Launcher 1 | . . . 1 Naked Turns . | . . . . Heaviest Build 36 | 9 25 34 36 Greatest Support 40 | 20 20 30 40 Greatest Overweight (x) 6 | 1 1 3 6 Average Overweight (x) . | . . . 1 Largest Inventory Capacity 12 | 6 12 12 12 Average Capacity 11 | 5 10 12 11 Most Carried 12 | 2 9 11 12 Average Carried 8 | 1 6 9 10 Final Capacity 12 | 6 12 12 10 Final Carried 11 | 2 8 11 10 Class Distribution -------------------- 93% | Mutant 6% | Scavenger-Mutant Dominant Class ---------------- Mutant | -10/Materials Mutant | -9/Materials Mutant | -9/Storage Resources | -11 -10 -9 -9 ----------- Run | Scr Mat Mat Sto Matter Collected 870 | 242 133 123 372 Remotely . | . . . . Salvage Created 1016 | . 211 123 682 Parts 66 | . 14 7 45 Haulers Intercepted 1 | . . . 1 Recyclers Shooed 1 | . 1 . . Parts Field Recycled . | . . . . Retrieved Matter . | . . . . Parts Self-Destructed . | . . . . Prevented . | . . . . Kills | -11 -10 -9 -9 ------- Run | Scr Mat Mat Sto Combat Hostiles Destroyed 25 | . 6 2 17 Guns 16 | . 4 1 11 Cannons 7 | . . 1 6 AOE 2 | . 2 . . Classes Destroyed 7 | . 3 2 2 Hauler 1 | . . . 1 Recycler 2 | . 1 . 1 Operator 1 | . . . 1 Watcher 1 | . . 1 . Swarmer 9 | . 3 . 6 Grunt 8 | . 3 . 5 Sentry 8 | . . 2 6 Best Kill Streak 5 | . 3 2 5 Combat Bots Only 3 | . 3 2 3 Max Kills in Single Turn 2 | . 2 1 2 Gunslinging . | . . . . Exploded 2 | . 2 . . Melee . | . . . . Uniques/NPCs Destroyed . | . . . . Combat | -11 -10 -9 -9 -------- Run | Scr Mat Mat Sto Damage Taken 2620 | . 552 307 1761 Core 497 | . 88 14 395 Absorbed by Shields . | . . . . Core Remaining (%) 82 | 100 64 . . Volleys Fired 139 | . 50 15 74 Largest 2 | . 2 2 2 Hottest 91 | . 60 60 91 Shots Fired 229 | . 86 22 121 Gun 191 | . 85 21 85 Cannon 34 | . . 1 33 Launcher 4 | . 1 . 3 Special . | . . . . Kinetic 182 | . 80 16 86 Thermal 43 | . 5 6 32 Explosive 4 | . 1 . 3 Electromagnetic . | . . . . Robot Hit Streak 17 | . 11 8 17 Robot Miss Streak 4 | . 4 1 4 Penetration Max . | . . . . Secondary Targets . | . . . . Shots Hit Robots 156 | . 62 18 76 Core Hits 59 | . 23 7 29 Critical Hits 1 | . . . 1 Critical Kills . | . . . . Critical Parts Destroyed 1 | . . . 1 Melee Attacks . | . . . . Impact . | . . . . Slashing . | . . . . Piercing . | . . . . Sneak Attacks . | . . . . Combat Hostiles . | . . . . Follow-up Attacks . | . . . . Damage Inflicted 1936 | . 554 176 1206 Guns 1427 | . 489 156 782 Cannons 435 | . . 20 415 Explosions 65 | . 65 . . Melee . | . . . . Ramming 9 | . . . 9 Kinetic 1541 | . 434 141 966 Thermal 321 | . 55 35 231 Explosive 65 | . 65 . . Electromagnetic . | . . . . Impact . | . . . . Slashing . | . . . . Piercing . | . . . . Highest Corruption . | . . . . Average Corruption . | . . . . Corruption Purged . | . . . . Overload Shots . | . . . . Overflow Damage . | . . . . Projectiles . | . . . . Explosions . | . . . . Melee . | . . . . Knockbacks 5 | . . . 5 Impact . | . . . . Kinetic 5 | . . . 5 Secondary . | . . . . Self-Inflicted Damage . | . . . . Shots . | . . . . Rammed 3 | . . . 3 Targets Rammed 3 | . . . 3 Kicked . | . . . . Crushed . | . . . . Highest Temperature 174 | . 56 95 174 Average Temperature 36 | . 15 44 42 Received Heat Transfer 783 | . 279 90 414 Siege Activations . | . . . . Robots Corrupted . | . . . . Combat Hostiles . | . . . . Parts Fried . | . . . . Impact Corruptions . | . . . . Robots Melted . | . . . . Combat Hostiles . | . . . . Parts Melted 1 | . . . 1 Heat Transferred 792 | . 125 75 592 Parts Sabotaged . | . . . . Parts Stolen . | . . . . Parts Stripped . | . . . . Power Chain Reactions . | . . . . Missiles Intercepted . | . . . . Alert | -11 -10 -9 -9 ------- Run | Scr Mat Mat Sto Peak Influence 287 | . 125 87 287 Average Influence 66 | . 42 38 102 Maximum Alert Level 1 | . . . 1 Low Security (%) 93 | . . . . Level 1 6 | . . . . Level 2 . | . . . . Level 3 . | . . . . Level 4 . | . . . . Level 5 . | . . . . High Security . | . . . . Max Security . | . . . . Squads Dispatched 5 | . . . 5 Investigation . | . . . . Extermination . | . . . . Reinforcement 3 | . . . 3 Assault . | . . . . Garrison 2 | . . . 2 Intercept . | . . . . Construction Impeded 1 | . . . 1 Haulers Reinforced . | . . . . Stealth | -11 -10 -9 -9 --------- Run | Scr Mat Mat Sto Distress Signals 3 | . . . 3 Communications Jammed . | . . . . Distress Signals . | . . . . Times Spotted 49 | . 13 5 31 Peak Tracking Total 6 | . 4 2 6 Tactical Retreats 4 | . 2 1 1 Traps | -11 -10 -9 -9 ------- Run | Scr Mat Mat Sto Traps Triggered 6 | . . 3 3 Indirectly . | . . . . Trap Hack Attempts . | . . . . Triggered . | . . . . Disarmed . | . . . . Reprogrammed . | . . . . Reused . | . . . . Traps Extracted . | . . . . Installed . | . . . . Triggered . | . . . . Machines | -11 -10 -9 -9 ---------- Run | Scr Mat Mat Sto Machines Disabled . | . . . . Max in Single Turn . | . . . . Machines Sabotaged . | . . . . Garrisons Compromised . | . . . . Overloaded Fab Kills . | . . . . Fab Network Shutdowns . | . . . . Hacking | -11 -10 -9 -9 --------- Run | Scr Mat Mat Sto Machines Accessed 6 | . 1 1 4 Terminals 5 | . 1 . 4 Fabricators . | . . . . Repair Stations 1 | . . 1 . Recycling Units . | . . . . Scanalyzers . | . . . . Garrison Access . | . . . . Total Hacks 7 | . 1 2 4 Successful 3 | . . 1 2 Failed 4 | . 1 1 2 Catastrophic 2 | . 1 . 1 Database Lockouts . | . . . . Manual 3 | . 1 . 2 Terminals 5 | . 1 . 4 Fabricators . | . . . . Repair Stations 2 | . . 2 . Recycling Units . | . . . . Scanalyzers . | . . . . Garrison Access . | . . . . Terminal Hacks 2 | . . . 2 Robot Analysis 1 | . . . 1 Open Door 1 | . . . 1 Fabricator Hacks . | . . . . Repair Station Hacks 1 | . . 1 . Scan Component 1 | . . 1 . Recycling Unit Hacks . | . . . . Scanalyzer . | . . . . Garrison Access Hacks . | . . . . Unauthorized Hacks . | . . . . Terminals . | . . . . Fabricators . | . . . . Repair Stations . | . . . . Recycling Units . | . . . . Scanalyzers . | . . . . Garrison Access . | . . . . Data Cores Recovered . | . . . . Used . | . . . . Hacking Detections 5 | . 1 1 3 Full Trace Events . | . . . . Feedback Events . | . . . . Feedback Blocked . | . . . . Robot Schematics Acquired . | . . . . Robots Built . | . . . . Matter . | . . . . Time . | . . . . Total Robot Build Rating . | . . . . Part Schematics Acquired . | . . . . Parts Built . | . . . . Matter . | . . . . Time . | . . . . Total Part Build Rating . | . . . . Parts Repaired . | . . . . Time . | . . . . Parts Recycled . | . . . . Recycled Matter . | . . . . Retrieved Matter . | . . . . Retrieved Components . | . . . . Parts Scanalyzed . | . . . . Part Schematics Acquired . | . . . . Parts Damaged . | . . . . Bothacking | -11 -10 -9 -9 ------------ Run | Scr Mat Mat Sto Used RIF Installer . | . . . . Robots Hacked . | . . . . Non-combat . | . . . . Combat . | . . . . Robot Hacks Applied . | . . . . Relay Couplers Released . | . . . . Robots Rewired . | . . . . Allies Hacked . | . . . . Hacks Repelled . | . . . . Allies | -11 -10 -9 -9 -------- Run | Scr Mat Mat Sto Total Allies . | . . . . Largest Group . | . . . . Highest-Rated Group . | . . . . Highest-Rated Ally . | . . . . Total Orders . | . . . . Ally Attacks . | . . . . Total Damage . | . . . . Kills . | . . . . Allies Corrupted . | . . . . Allies Melted . | . . . . Intel | -11 -10 -9 -9 ------- Run | Scr Mat Mat Sto Robot Analysis Total 1 | . . . 1 Derelict Logs Recovered . | . . . . Drone Launches . | . . . . Drone Recoveries . | . . . . Exploration | -11 -10 -9 -9 ------------- Run | Scr Mat Mat Sto Turns Passed 1939 | 56 563 472 848 Spaces Moved 974 | 43 286 292 353 Core 23 | 11 . . 12 Treads 79 | . . . 79 Legs 872 | 32 286 292 262 Wheels . | . . . . Hover . | . . . . Flight . | . . . . Fastest Speed 50 | 50 120 120 150 Average Speed 146 | 105 143 136 161 Slowest Speed 350 | 120 150 210 350 Overloaded Moves . | . . . . Propulsion Burnouts . | . . . . Robots Hopped . | . . . . Cave-ins Triggered . | . . . . Exploration Rate (%) 31 | 4 47 19 54 Regions Visited 3 Branch Regions 1 Pre-discovered Areas . | . . . . Known Exits Taken . | . . . . Unknown Exits Taken 3 | 1 1 1 . Scrap Searched . | . . . . Spaces Dug . | . . . . Terrain Destroyed 33 | . 7 . 26 Melee . | . . . . Projectile . | . . . . AOE 33 | . 7 . 26 Actions | -11 -10 -9 -9 --------- Run | Scr Mat Mat Sto Total 1271 | 50 369 344 508 Wait 85 | . 15 18 52 Move 971 | 42 285 291 353 Hop . | . . . . Pick Up 22 | 2 7 7 6 Fast Attach 17 | 6 1 6 4 Attach 19 | . 5 5 9 Detach 8 | . 3 1 4 Swap 4 | . 2 1 1 Drop 3 | . 1 . 2 Fire 139 | . 50 15 74 Melee . | . . . . Ram 2 | . . . 2 Kick . | . . . . Crush 1 | . . . 1 Escape Stasis . | . . . . Rewire . | . . . . Trap . | . . . . Miscellaneous . | . . . . Route ------- -11/Scrapyard -10/Materials -9/Materials (discovered 2 exits: [*Min] / *Sto) -9/Storage History --------- Turn | Location | Event 8 | -11/Scrapyard | Discovered new exit (range 15) 57 | -11/Scrapyard | Entered Materials 312 | -10/Materials | Build established: Mutant 455 | -10/Materials | Discovered new exit (range 15) 620 | -10/Materials | Entered another Materials area 620 | -9/Materials | Evolved 2 slots: Propulsion x1, Utility x1 770 | -9/Materials | Discovered new exit (range 16) 880 | -9/Materials | Lost 4 parts (2n2w) 1006 | -9/Materials | Discovered new exit (range 16) 1092 | -9/Materials | Entered Storage 1651 | -9/Storage | Lost 4 parts (1p1n2w) 1797 | -9/Storage | Core integrity fell below 50% 1805 | -9/Storage | Garrison activated, responded to threat 1923 | -9/Storage | Lost 3 parts (2n1w) 1935 | -9/Storage | Core integrity fell below 20% 1940 | -9/Storage | Destroyed by Y-45 Defender with Heavy Assault Rifle Last Messages --------------- 01846_ Connecting with Terminal... 01854_ K-01 Serf cleans the Component Storage. 01859_ Slammed into K-01 Serf. 01876_ Triggered Blade Trap. 01876_ Massive razor-sharp blades shoot up from within the floor. 01876_ Lgt. Nuclear Core severed. 01876_ Lgt. Treads destroyed. 01887_ U-05 Engineer lays Concrete. 01888_ Lgt. Cannon destroyed. 01892_ Lgt. Treads destroyed. 01902_ U-05 Engineer destroyed. 01919_ Slammed into U-05 Engineer. 01919_ ALERT: Construction progress impeded, dispatching reinforcements to local area. 01922_ Slammed into Y-45 Defender. 01935_ R-06 Scavenger collects Lgt. Nuclear Core. 01936_ U-05 Engineer lays Concrete. 01937_ Imp. Flight Unit destroyed. 01939_ R-06 Scavenger collects Welding Torch. 01939_ Sml. Storage Unit destroyed. Map ----- +----------------------------------------------------+ | ??????????#######??????????????????????????? | | ?????????## ######?????????????????????? | | ########## # # ############??????????? | | [ ^ #??????????? | | = #??????????? | | * * #??????????? | | ########## # ########+###??????????? | | #???##### #######?##### #????????????? | | #???????###???????#]] #????????????? | | """ ##????????????????#[[[ #????????????? | | """ "#????????????????#####T##????????????? | | """ T#????????????????????###?????????????? | | "#????????????????????????????????????? | | ##????????????????????????????????????? | | #?????????????????????????????????????? | | ######?????????????????????????????????????? | | ???????????????????????????????????????????? | | ???????????????????????????????????????????? | | ???????????????????????????????????????????? | | ???????????????????????????????????????????? | | ???????????????????????????????????????????? | | ???????????????????????????????????????????? | | +##########################+#+###??????????? | | #??????????? | | ^ ! Y Y u +??????????? | | r %= Y !@ #??????????? | | #####+############;########## #??????????? | | ????# #??## #?????????????????? | | ????# """ ##??#T """ #?????????????????? | | ????# "R #???##!!! """ #?????????????????? | | ????# """ #????#!!! """ #?????????????????? | | ????# #????#!! #?????????????????? | | ????# #????# "T" #?????????????????? | | ????# """ ###??# """ #?????????????????? | | ????# """ ""#??# #?????????????????? | | ????# """ T"#??######### #?????????????????? | | ????# """ ""#???????????##?????????????????? | | ##### """ ###??????????????????????????????? | | + #????????????????????????????????? | | ###########????????????????????????????????? | | #??????????????????????????????????????????? | | #??????????????????????????????????????????? | | #??????????????????????????????????????????? | | #??????????????????????????????????????????? | | #??????????????????????????????????????????? | | #??????????????????????????????????????????? | | #??????????????????????????????????????????? | | #??????????????????????????????????????????? | | #??????????????????????????????????????????? | | ####???????????????????????????????????????? | +----------------------------------------------------+ Best States ------------- Heat Dissipation 28 Energy Generation 14 Energy Capacity 160 Matter Stores 300 Matter Capacity 300 Sight Range 16 Terrain Scan Density 10 Armor Coverage 150 Evasion (%) 40 Recoil Reduction 2 Item Schematics ----------------- None Robot Schematics ------------------ None Fabricated ------------ Nothing Alien Tech Used ----------------- None Achievements -------------- None Challenges ------------ None Game ------ Seed NeutronMetafiberField Manual? 0 Play Time 00:26:41 Cumulative 16.9 hours Start 2019.11.05 @ 12:40:13 End 2019.11.05 @ 13:03:46 Sessions 1 Manual Loads 0 Difficulty Rogue Special Mode None Game No. 22 Rogue 22 Adventurer 0 Explorer 0 Win Type - Total 0 Types 0/0/0/0/0/0/0 Lore% 8 Gallery% 20 Achievement% 20 Wizard Run 0 Options --------- ASCII 0 Keyboard 1 Movement Numpad Keybinds 0 Fullscreen 1 Font 18/X11 Map View 76x50 Tactical HUD 1 Map Filters NONE Filters NONE Steam 1 RUN: c654dc80-e3a5-47e6-b729-23b9a1b3d847